bitfinex-derivatives/quotes_SOLF0:USTF0_20260304
["timestamp","ask_amount","ask_price","bid_price","bid_amount"]
[1772584784381,5.51824111,86.43,86.363,22.46432192]
[1772584785377,10.415,86.411,86.367,22.44375776]
[1772584785978,5.51824111,86.45,86.367,22.44375776]
[1772584786682,5.51824111,86.45,86.341,22.44271773]
[1772584786683,5.51824111,86.42,86.341,22.44271773]
[1772584786980,11.55,86.468,86.341,22.44271773]
[1772584787181,10.415,86.404,86.357,22.44271773]
[1772584787683,5.51824111,86.42,86.357,22.44271773]
[1772584788275,10.417,86.395,86.357,22.44271773]
[1772584788473,5.51824111,86.42,86.357,22.44271773]
[1772584788676,5.51824111,86.4,86.301,22.5049906]
[1772584790078,5.51824111,86.4,86.3,5.51824111]
[1772584790079,5.51824111,86.4,86.332,22.50574792]
[1772584791082,10.419,86.378,86.338,22.52114582]
[1772584791484,5.51824111,86.42,86.338,22.52114582]
[1772584792382,5.51824111,86.42,86.34,22.52186808]
[1772584793378,5.51824111,86.42,86.35,22.49540273]
[1772584793684,5.51824111,86.44,86.35,22.49540273]
[1772584793884,5.51824111,86.44,86.34,5.51824111]
[1772584793885,10.413,86.425,86.378,22.49614133]
[1772584794283,10.412,86.434,86.388,22.49614133]
[1772584794583,5.51824111,86.44,86.388,22.49614133]
[1772584794975,20.814,86.476,86.388,22.49614133]
[1772584795283,5.51824111,86.46,86.388,22.49614133]
[1772584795477,10.412,86.434,86.36,5.51824111]
[1772584795785,5.51824111,86.46,86.39,22.51760218]
[1772584796178,124.0,86.49,86.39,22.51760218]
[1772584796179,5.51824111,86.44,86.39,22.51760218]
[1772584797075,5.51824111,86.44,86.374,22.40835845]
[1772584798381,10.413,86.422,86.376,22.40916818]
[1772584798977,5.51824111,86.46,86.379,22.40393715]
[1772584800383,10.412,86.434,86.389,22.40473536]
[1772584800584,5.51824111,86.46,86.389,22.40473536]
[1772584800780,5.51824111,86.48,86.389,22.40473536]
[1772584801184,10.409,86.457,86.404,22.41936634]
[1772584801790,5.51824111,86.5,86.404,22.41936634]
[1772584802587,5.51824111,86.5,86.354,162.118]
[1772584802588,5.51824111,86.48,86.41,22.41905689]
[1772584802786,161.836,86.505,86.361,22.41905689]
[1772584802787,5.51824111,86.46,86.361,22.41905689]
[1772584803392,5.51824111,86.46,86.386,22.41905689]
[1772584803894,161.798,86.525,86.404,22.41980578]
[1772584803895,5.51824111,86.48,86.404,22.41980578]
[1772584804085,5.51824111,86.48,86.38,5.51824111]
[1772584804086,161.75,86.551,86.421,22.41980578]
[1772584805291,10.405,86.491,86.437,22.24284439]
[1772584805591,20.796,86.549,86.437,22.24284439]
[1772584805896,20.796,86.549,86.448,22.24377066]
[1772584806897,10.403,86.504,86.45,21.81976545]
[1772584807398,10.402,86.513,86.455,21.81976545]
[1772584808292,10.402,86.513,86.46,21.82112108]
[1772584809496,10.402,86.513,86.462,21.8548162]
[1772584809893,10.402,86.513,86.465,21.85610572]
[1772584810093,10.401,86.521,86.465,21.85610572]
[1772584810299,5.51824111,86.54,86.465,21.85610572]
[1772584811600,10.403,86.508,86.465,21.85610572]
[1772584811902,5.51824111,86.54,86.465,21.85610572]
[1772584813196,10.402,86.517,86.468,21.89016739]
[1772584813394,5.51824111,86.54,86.468,21.89016739]
[1772584813800,10.403,86.506,86.468,21.89016739]
[1772584814292,5.51824111,86.54,86.468,21.89016739]
[1772584815196,10.402,86.514,86.468,21.89016739]
[1772584815901,5.51824111,86.54,86.468,21.89016739]
[1772584819199,5.51824111,86.52,86.41,27.37289634]
[1772584819404,5.51824111,86.5,86.414,21.85465523]
[1772584819905,5.51824111,86.48,86.414,21.85465523]
[1772584820101,10.409,86.459,86.414,21.85465523]
[1772584820298,5.51824111,86.48,86.414,21.85465523]
[1772584821305,10.408,86.467,86.416,21.87867177]
[1772584821505,5.51824111,86.48,86.416,21.87867177]
[1772584823196,10.409,86.46,86.416,21.87867177]
[1772584825604,5.51824111,86.48,86.419,22.03979527]
[1772584825813,5.51824111,86.5,86.419,22.03979527]
[1772584826207,5.51824111,86.5,86.41,5.51824111]
[1772584826208,10.404,86.496,86.45,22.03979527]
[1772584826605,5.50204337,86.52,86.45,22.03979527]
[1772584827110,10.404,86.497,86.451,22.03168189]
[1772584827708,10.405,86.49,86.451,22.03168189]
[1772584827908,5.50204337,86.52,86.451,22.03168189]
[1772584829312,10.405,86.493,86.451,22.03168189]
[1772584830906,10.405,86.493,86.394,14.24154643]
[1772584830907,20.809,86.498,86.436,22.10649834]
[1772584831104,5.50204337,86.5,86.436,22.10649834]
[1772584836012,10.407,86.475,86.436,22.10649834]
[1772584836818,5.50204337,86.5,86.436,22.10649834]
[1772584837120,5.50204337,86.52,86.436,22.10649834]
[1772584837713,10.405,86.492,86.45,22.29287628]
[1772584837909,5.50204337,86.52,86.45,22.29287628]
[1772584838520,10.405,86.489,86.45,22.29287628]
[1772584839214,5.50204337,86.5,86.45,22.29287628]
[1772584839718,10.406,86.479,86.45,22.29287628]
[1772584839919,5.50204337,86.5,86.45,22.29287628]
[1772584840119,10.406,86.485,86.45,22.29287628]
[1772584840420,5.50204337,86.5,86.45,22.29287628]
[1772584840818,10.407,86.473,86.45,22.29287628]
[1772584841013,5.50204337,86.5,86.45,22.29287628]
[1772584841415,10.407,86.471,86.431,22.47575723]
[1772584841714,5.50204337,86.5,86.431,22.47575723]
[1772584845225,10.407,86.474,86.433,22.56672342]
[1772584845427,5.50204337,86.5,86.433,22.56672342]
[1772584846030,10.407,86.47,86.433,22.56672342]
[1772584846522,5.50204337,86.5,86.433,22.56672342]
[1772584847028,10.408,86.467,86.433,22.56672342]
[1772584847430,5.50204337,86.5,86.433,22.56672342]
[1772584847824,10.406,86.482,86.436,22.60389046]
[1772584848030,5.50204337,86.5,86.436,22.60389046]
[1772584848525,10.407,86.476,86.436,22.60389046]
[1772584848727,5.50204337,86.48,86.416,22.6225363]
[1772584849124,10.409,86.456,86.416,22.6225363]
[1772584849630,5.50204337,86.48,86.416,22.6225363]
[1772584850629,20.813,86.479,86.416,22.6225363]
[1772584851229,10.411,86.443,86.416,22.6225363]
[1772584852332,20.813,86.479,86.416,22.6225363]
[1772584852333,5.50204337,86.48,86.416,22.6225363]
[1772584853336,10.409,86.454,86.416,22.6225363]
[1772584853937,10.41,86.447,86.416,22.6225363]
[1772584855038,10.411,86.44,86.416,22.6225363]
[1772584855738,5.50204337,86.48,86.416,22.6225363]
[1772584856938,20.811,86.489,86.416,22.6225363]
[1772584857138,5.50204337,86.48,86.416,22.6225363]
[1772584857742,10.41,86.446,86.416,22.6225363]
[1772584858634,5.50204337,86.48,86.416,22.6225363]
[1772584860244,10.41,86.449,86.416,22.6225363]
[1772584860740,10.408,86.465,86.417,10.414]
[1772584860945,5.50204337,86.48,86.418,17.3950519]
[1772584861543,5.50204337,86.46,86.394,14.24154643]
[1772584861736,5.50204337,86.44,86.373,17.39506981]
[1772584863442,5.50204337,86.46,86.373,17.39506981]
[1772584864146,10.412,86.431,86.383,17.38140166]
[1772584864354,5.50204337,86.46,86.383,17.38140166]
[1772584866150,10.413,86.425,86.383,17.38140166]
[1772584866349,10.64676358,86.477,86.383,17.38140166]
[1772584866350,5.50204337,86.44,86.383,17.38140166]
[1772584867350,10.414,86.417,86.383,17.38140166]
[1772584870747,20.814,86.475,86.386,11.14030895]
[1772584870948,2.057699,86.44,86.386,11.14030895]
[1772584871545,2.057699,86.45,86.391,11.13997827]
[1772584871945,2.057699,86.43,86.391,11.13997827]
[1772584873145,10.414,86.419,86.366,11.20540507]
[1772584873548,2.057699,86.42,86.366,11.20540507]
[1772584874142,10.415,86.411,86.368,11.20512159]
[1772584875151,10.415,86.411,86.37,11.18939183]
[1772584876250,22.19676358,86.478,86.37,11.18939183]
[1772584876251,2.057699,86.43,86.375,11.1891057]
[1772584876451,2.057699,86.43,86.381,11.1891057]
[1772584876850,10.412,86.429,86.385,11.34016194]
[1772584877154,2.057699,86.44,86.385,11.34016194]
[1772584877348,2.057699,86.43,86.385,11.34016194]
[1772584878151,2.057699,86.42,86.385,11.34016194]
[1772584878656,10.415,86.406,86.364,11.41859988]
[1772584879455,10.415,86.406,86.365,10.42]
[1772584879654,10.415,86.406,86.366,11.41817866]
[1772584880848,2.057699,86.43,86.371,6.43203864]
[1772584881055,2.057699,86.43,86.381,6.43203864]
[1772584881652,10.414,86.413,86.381,6.43203864]
[1772584882052,2.057699,86.4,86.357,6.43203864]
[1772584882956,10.416,86.398,86.357,6.43203864]
[1772584884255,10.415,86.406,86.361,6.43203864]
[1772584885856,10.415,86.406,86.364,6.43203864]
[1772584886053,2.057699,86.42,86.364,6.43203864]
[1772584887351,10.415,86.407,86.366,6.43203864]
[1772584887657,2.057699,86.42,86.366,6.43203864]
[1772584887857,2.057699,86.43,86.376,6.43203864]
[1772584888449,2.05755852,86.43,86.376,6.43203864]
[1772584888655,2.05755852,86.43,86.37,2.05755852]
[1772584888656,10.413,86.426,86.382,6.43203864]
[1772584889353,10.414,86.42,86.382,6.43203864]
[1772584890658,1.86266178,86.44,86.382,6.43203864]
[1772584890659,2.05755852,86.44,86.39,2.05755852]
[1772584890858,2.05755852,86.44,86.397,6.43203864]
[1772584891154,2.05755852,86.45,86.397,6.43203864]
[1772584891355,10.41,86.445,86.397,6.43203864]
[1772584891855,10.41,86.445,86.401,10.416]
[1772584892058,10.41,86.445,86.402,6.43203864]
[1772584892262,10.41,86.453,86.402,6.43203864]
[1772584893459,10.41,86.453,86.4,2.05755852]
[1772584893460,10.41,86.453,86.409,16.84703864]
[1772584895461,2.05755852,86.45,86.41,6.43203864]
[1772584897065,10.411,86.439,86.41,6.43203864]
[1772584897762,10.41,86.447,86.41,6.43203864]
[1772584898258,10.64676358,86.491,86.41,6.43203864]
[1772584898259,2.05755852,86.47,86.411,6.43203864]
[1772584899160,10.409,86.458,86.411,6.43203864]
[1772584901155,10.41,86.452,86.411,6.43203864]
[1772584902064,2.05755852,86.45,86.411,6.43203864]
[1772584902466,2.05755852,86.44,86.397,6.43203864]
[1772584903061,10.412,86.433,86.397,6.43203864]
[1772584904366,12.46855852,86.44,86.397,6.43203864]
[1772584904566,1.93387525,86.449,86.397,6.43203864]
[1772584905971,2.05755852,86.44,86.397,6.43203864]
[1772584906466,10.412,86.433,86.397,6.43203864]
[1772584906667,1.93387525,86.449,86.397,6.43203864]
[1772584907866,10.41,86.447,86.4,6.43203864]
[1772584908070,2.05755852,86.45,86.4,6.43203864]
[1772584909270,10.411,86.441,86.4,6.43203864]
[1772584909471,1.67641729,86.449,86.4,6.43203864]
[1772584910266,10.412,86.435,86.4,6.43203864]
[1772584910862,10.411,86.443,86.4,6.43203864]
[1772584911668,1.64435646,86.442,86.379,14.24154643]
[1772584911873,10.64676358,86.5,86.379,14.24154643]
[1772584911874,2.05755852,86.42,86.38,6.99977438]
[1772584912572,10.413,86.424,86.38,6.99977438]
[1772584916873,10.414,86.417,86.38,6.99977438]
[1772584917375,10.413,86.426,86.381,6.99977438]
[1772584919076,10.414,86.42,86.381,6.99977438]
[1772584919773,10.414,86.414,86.381,6.99977438]
[1772584920275,10.415,86.408,86.381,6.99977438]
[1772584922076,10.414,86.415,86.381,6.99977438]
[1772584922573,10.415,86.409,86.381,6.99977438]
[1772584924578,10.414,86.416,86.381,6.99977438]
[1772584925081,1.88362361,86.419,86.361,6.99977438]
[1772584926174,1.88667142,86.409,86.354,14.24154643]
[1772584926379,2.05755852,86.39,86.354,6.99977438]
[1772584927377,10.418,86.385,86.354,6.99977438]
[1772584929484,2.05755852,86.39,86.354,6.99977438]
[1772584929683,2.05755852,86.4,86.354,6.99977438]
[1772584929881,2.05755852,86.41,86.354,6.99977438]
[1772584930081,10.417,86.393,86.354,6.99977438]
[1772584930682,10.418,86.386,86.354,6.99977438]
[1772584930878,1.9536397,86.389,86.34,6.99977438]
[1772584931691,2.05755852,86.38,86.34,6.99977438]
[1772584932189,10.419,86.373,86.34,6.99977438]
[1772584932694,1.9536397,86.389,86.34,6.99977438]
[1772584933597,10.419,86.374,86.34,6.99977438]
[1772584934094,10.42,86.367,86.34,6.99977438]
[1772584935092,10.419,86.374,86.34,6.99977438]
[1772584936695,10.418,86.382,86.34,6.99977438]
[1772584937193,10.418,86.382,86.341,6.99977438]
[1772584937397,10.417,86.389,86.341,6.99977438]
[1772584937696,2.05755852,86.4,86.354,6.99977438]
[1772584938095,10.415,86.405,86.354,6.99977438]
[1772584939193,10.415,86.405,86.356,10.421]
[1772584939491,20.822,86.445,86.361,6.94528688]
[1772584939492,2.04050255,86.419,86.361,6.94528688]
[1772584939692,2.04060389,86.409,86.361,6.94528688]
[1772584940099,2.05755852,86.4,86.361,6.94528688]
[1772584941300,10.417,86.388,86.361,6.94528688]
[1772584941997,10.416,86.397,86.361,6.94528688]
[1772584942897,10.416,86.397,86.318,20.852]
[1772584942898,2.05755852,86.42,86.373,6.94528688]
[1772584944199,10.414,86.415,86.373,6.94528688]
[1772584945096,10.415,86.409,86.373,6.94528688]
[1772584945296,1.99801249,86.419,86.373,6.94528688]
[1772584945505,2.05755852,86.41,86.373,6.94528688]
[1772584945696,10.415,86.404,86.373,6.94528688]
[1772584947502,1.99801249,86.419,86.373,6.94528688]
[1772584947901,2.05755852,86.42,86.373,6.94528688]
[1772584948606,2.05769664,86.42,86.373,6.94528688]
[1772584949206,10.414,86.412,86.376,6.94528688]
[1772584950300,10.415,86.406,86.376,6.94528688]
[1772584950700,2.05769664,86.41,86.376,6.94528688]
[1772584950908,4.07707161,86.42,86.376,6.94528688]
[1772584951104,1.88842956,86.419,86.376,6.94528688]
[1772584951906,10.415,86.41,86.376,6.94528688]
[1772584953108,10.414,86.419,86.38,6.94528688]
[1772584954215,10.414,86.419,86.383,6.94528688]
[1772584956312,10.414,86.419,86.384,17.36328688]
[1772584957014,1.90419105,86.445,86.4,2.05769664]
[1772584957208,1.90419105,86.445,86.401,6.94528688]
[1772584957408,2.05769664,86.46,86.411,6.94528688]
[1772584958112,1.90813319,86.459,86.411,6.94528688]
[1772584959313,10.41,86.448,86.411,6.94528688]
[1772584959813,2.05769664,86.43,86.397,6.94528688]
[1772584960014,2.05769664,86.43,86.381,6.94528688]
[1772584960509,10.414,86.414,86.381,6.94528688]
[1772584962115,10.414,86.414,86.345,21.36231964]
[1772584962116,2.05769664,86.39,86.334,13.52156402]
[1772584962415,2.05769664,86.36,86.319,13.52156402]
[1772584962712,2.05769664,86.37,86.319,13.52156402]
[1772584963115,10.42,86.362,86.319,13.52156402]
[1772584963313,31.46737301,86.414,86.319,13.52156402]
[1772584963314,2.05769664,86.36,86.319,13.52156402]
[1772584963516,2.05769664,86.33,86.264,13.50999617]
[1772584963818,2.05769664,86.31,86.264,13.50999617]
[1772584964218,2.05769664,86.33,86.271,13.50994123]
[1772584965116,12.48169664,86.33,86.271,13.50994123]
[1772584965823,12.48169664,86.33,86.231,2.01649119]
[1772584965824,12.48169664,86.33,86.281,13.36406199]
[1772584966620,10.424,86.33,86.281,13.36406199]
[1772584966819,10.423,86.342,86.281,13.36406199]
[1772584967020,5.52353698,86.35,86.281,13.36406199]
[1772584968215,10.423,86.338,86.281,13.36406199]
[1772584969125,5.52353698,86.35,86.282,13.32372362]
[1772584970021,10.422,86.351,86.282,13.32372362]
[1772584970227,10.422,86.351,86.283,10.43]
[1772584970525,10.422,86.351,86.27,5.52353698]
[1772584970526,10.422,86.351,86.284,13.32352681]
[1772584971116,10.42,86.363,86.284,13.32352681]
[1772584971524,5.52353698,86.37,86.284,13.32352681]
[1772584972227,5.52353698,86.37,86.296,13.33771435]
[1772584973027,10.421,86.359,86.303,13.35162091]
[1772584975331,10.422,86.35,86.303,13.35162091]
[1772584975926,10.423,86.342,86.303,13.35162091]
[1772584980235,5.52353698,86.37,86.303,13.35162091]
[1772584980528,5.52353698,86.37,86.255,20.867]
[1772584980529,5.52353698,86.37,86.311,13.36565341]
[1772584980931,10.421,86.359,86.311,13.36565341]
[1772584981933,5.52353698,86.37,86.311,13.36565341]
[1772584982130,5.52353698,86.37,86.254,21.46962853]
[1772584982131,5.52353698,86.37,86.296,13.33125645]
[1772584982935,5.52353698,86.37,86.297,10.428]
[1772584983145,5.52353698,86.37,86.297,23.74416888]
[1772584984235,10.423,86.343,86.297,23.74416888]
[1772584985038,10.422,86.351,86.3,10.428]
[1772584985238,5.52353698,86.37,86.301,13.28359129]
[1772584985539,10.421,86.359,86.312,13.28359129]
[1772584985731,5.52353698,86.37,86.312,13.28359129]
[1772584985936,5.52353698,86.39,86.312,13.28359129]
[1772584987238,10.42,86.369,86.323,13.28888148]
[1772584987536,5.52353698,86.39,86.323,13.28888148]
[1772584988137,10.419,86.377,86.333,10.424]
[1772584988439,2.05953369,86.38,86.334,13.28870187]
[1772584988637,2.05953369,86.39,86.334,13.28870187]
[1772584988836,2.05953369,86.39,86.341,13.32806395]
[1772584989237,10.417,86.389,86.343,10.423]
[1772584989436,10.417,86.389,86.344,13.32806395]
[1772584989937,10.416,86.396,86.348,13.327915]
[1772584990443,10.417,86.39,86.348,13.327915]
[1772584991139,2.05953369,86.41,86.357,13.34911942]
[1772584991538,10.415,86.405,86.358,10.421]
[1772584991734,2.05953369,86.41,86.361,13.34898626]
[1772584992044,2.05953369,86.42,86.361,13.34898626]
[1772584992235,10.414,86.413,86.371,13.34898626]
[1772584992437,2.05953369,86.42,86.371,13.34898626]
[1772584993137,10.414,86.418,86.373,13.32358291]
[1772584993443,2.05953369,86.42,86.373,13.32358291]
[1772584994345,2.05953369,86.42,86.376,13.32343876]
[1772584994534,10.413,86.426,86.381,13.32343876]
[1772584995544,2.05953369,86.43,86.385,13.32875207]
[1772584995840,10.412,86.435,86.391,13.32861423]
[1772584996443,2.05953369,86.44,86.393,13.32861423]
[1772584996746,10.411,86.444,86.393,13.32861423]
[1772584998047,10.411,86.444,86.401,13.34908683]
[1772585000649,10.412,86.436,86.401,13.34908683]
[1772585000852,2.05953369,86.44,86.387,13.36147397]
[1772585001853,2.05953369,86.44,86.331,21.46962853]
[1772585001854,2.05953369,86.42,86.372,13.36136411]
[1772585002454,12.47253369,86.42,86.372,13.36136411]
[1772585003553,2.05953369,86.42,86.374,13.35293128]
[1772585003858,10.413,86.428,86.374,13.35293128]
[1772585004260,10.411,86.437,86.385,13.35281782]
[1772585004958,2.05953369,86.43,86.385,13.35281782]
[1772585005458,12.47153369,86.43,86.387,13.30548177]
[1772585005660,10.412,86.43,86.387,13.30548177]
[1772585006056,10.411,86.438,86.391,13.30534943]
[1772585007363,10.411,86.438,86.392,13.30168215]
[1772585007557,10.412,86.43,86.392,13.30168215]
[1772585009161,10.411,86.438,86.392,13.30168215]
[1772585010261,2.05953369,86.45,86.395,13.30117965]
[1772585010262,10.41,86.446,86.395,13.30117965]
[1772585010463,10.41,86.446,86.401,13.30117965]
[1772585011260,10.411,86.439,86.401,13.30117965]
[1772585011461,11.59,86.507,86.386,13.30088359]
[1772585011462,2.05628565,86.43,86.386,13.30088359]
[1772585012765,10.413,86.428,86.386,13.30088359]
[1772585013365,2.05628565,86.44,86.386,13.30088359]
[1772585013563,12.46828565,86.43,86.388,23.70369424]
[1772585014161,10.414,86.418,86.388,13.28669424]
[1772585014665,10.413,86.425,86.388,13.28669424]
[1772585014862,2.05628565,86.43,86.388,13.28669424]
[1772585015361,10.412,86.429,86.388,13.28669424]
[1772585016367,10.412,86.429,86.39,13.29741738]
[1772585016765,10.413,86.422,86.39,13.29741738]
[1772585017657,10.412,86.429,86.39,13.29741738]
[1772585020866,2.05628565,86.43,86.391,23.70933569]
[1772585021761,10.412,86.429,86.391,23.70933569]
[1772585022070,2.05628565,86.43,86.391,23.70933569]
[1772585022665,12.46828565,86.43,86.391,13.29233569]
[1772585025471,10.413,86.424,86.391,13.29233569]
[1772585026275,10.415,86.407,86.372,13.31336826]
[1772585026564,2.05628565,86.39,86.351,13.31336826]
[1772585026762,2.05628565,86.38,86.337,13.31744808]
[1772585026964,20.829,86.412,86.311,13.31744808]
[1772585026965,2.05628565,86.36,86.311,13.31744808]
[1772585027368,10.421,86.357,86.311,13.31744808]
[1772585027569,2.05628565,86.35,86.311,13.31744808]
[1772585027770,2.05628565,86.36,86.311,13.31744808]
[1772585029271,2.01588377,86.398,86.313,13.50340213]
[1772585029575,2.05628565,86.36,86.313,13.50340213]
[1772585029973,2.05628565,86.37,86.321,10.425]
[1772585030578,2.05628565,86.36,86.313,13.50340213]
[1772585030771,2.05628565,86.35,86.313,13.50340213]
[1772585030974,10.423,86.34,86.293,13.50616252]
[1772585031180,12.47928565,86.34,86.293,13.50616252]
[1772585031878,2.05628565,86.34,86.293,13.50616252]
[1772585032680,2.05628565,86.35,86.303,13.50595517]
[1772585033279,10.421,86.357,86.303,13.50595517]
[1772585034176,2.05628565,86.35,86.303,13.50595517]
[1772585034483,2.05628565,86.36,86.303,13.50595517]
[1772585034673,10.423,86.345,86.303,13.50595517]
[1772585034871,2.05628565,86.35,86.303,13.50595517]
[1772585038185,10.42,86.365,86.306,13.54653202]
[1772585038382,2.05628565,86.36,86.306,13.54653202]
[1772585038582,2.05628565,86.35,86.306,13.54653202]
[1772585040184,10.421,86.359,86.308,13.56076945]
[1772585040381,2.05628565,86.36,86.311,13.56076945]
[1772585040584,2.05628565,86.35,86.311,13.56076945]
[1772585040881,10.421,86.357,86.311,13.56076945]
[1772585041888,2.05628565,86.36,86.313,13.5063533]
[1772585042387,2.05628565,86.37,86.313,13.5063533]
[1772585042888,2.05628565,86.37,86.325,13.53506498]
[1772585043387,2.05628565,86.36,86.325,13.53506498]
[1772585044285,2.05628565,86.35,86.305,13.53505451]
[1772585044689,2.05628565,86.35,86.29,2.05628565]
[1772585044690,2.05628565,86.33,86.289,13.55092748]
[1772585047093,2.05628565,86.32,86.271,13.53248397]
[1772585047288,2.05628565,86.32,86.272,10.431]
[1772585047593,2.05628565,86.32,86.271,13.53248397]
[1772585047995,10.425,86.325,86.271,13.53248397]
[1772585048294,10.425,86.325,86.28,13.53247321]
[1772585049799,10.426,86.317,86.28,13.53247321]
[1772585050498,10.425,86.325,86.28,13.53247321]
[1772585050795,2.05628565,86.33,86.28,13.53247321]
[1772585050996,2.05628565,86.33,86.28,15.58875886]
[1772585051197,2.05628565,86.33,86.28,13.53247321]
[1772585051892,2.05628565,86.33,86.28,15.58875886]
[1772585052098,2.05628565,86.34,86.291,13.54347561]
[1772585052299,10.422,86.349,86.297,10.428]
[1772585052496,10.422,86.349,86.298,13.54347561]
[1772585053299,10.422,86.349,86.301,13.55567439]
[1772585053697,10.421,86.357,86.304,13.55566993]
[1772585054192,10.42,86.369,86.311,13.55566993]
[1772585054698,2.05628565,86.36,86.311,13.55566993]
[1772585054889,10.42,86.369,86.322,13.59975882]
[1772585055489,2.01552767,86.408,86.322,13.59975882]
[1772585055490,2.05628565,86.38,86.322,13.59975882]
[1772585056606,2.01528839,86.418,86.331,13.59976484]
[1772585056805,2.05628565,86.39,86.331,13.59976484]
[1772585058406,20.827,86.421,86.34,13.55697235]
[1772585058599,2.05628565,86.38,86.34,13.55697235]
[1772585059605,10.418,86.385,86.342,13.56149681]
[1772585060504,10.418,86.385,86.344,13.56149681]
[1772585061000,2.05628565,86.4,86.344,13.56149681]
[1772585061203,2.05628565,86.39,86.344,13.56149681]
[1772585062306,2.05628565,86.39,86.345,13.50771001]
[1772585062702,10.419,86.378,86.345,13.50771001]
[1772585062909,2.05628565,86.37,86.33,13.50056872]
[1772585064210,12.47628565,86.37,86.33,13.50056872]
[1772585065007,2.05628565,86.37,86.331,13.49822799]
[1772585065600,2.05628565,86.38,86.331,13.49822799]
[1772585065804,2.05628565,86.37,86.331,13.49822799]
[1772585066010,2.05628565,86.38,86.331,13.49822799]
[1772585066711,2.05628565,86.38,86.28,20.861]
[1772585066712,2.05628565,86.39,86.334,13.49643498]
[1772585068202,2.05628565,86.39,86.335,10.424]
[1772585068203,10.418,86.382,86.335,10.424]
[1772585068404,10.418,86.382,86.336,13.4964194]
[1772585068612,2.05628565,86.38,86.336,13.4964194]
[1772585068814,10.42,86.367,86.336,13.4964194]
[1772585069012,10.42,86.367,86.281,21.46962853]
[1772585069013,2.05628565,86.37,86.323,13.49749759]
[1772585069811,12.47728565,86.36,86.323,13.49749759]
[1772585070613,12.48158939,86.36,86.323,13.49749759]
[1772585071206,10.422,86.351,86.323,13.49749759]
[1772585071412,2.06058939,86.36,86.302,13.49774439]
[1772585072111,10.422,86.352,86.303,10.427]
[1772585072414,2.06058939,86.36,86.311,13.49772902]
[1772585073212,12.48158939,86.36,86.315,13.4820171]
[1772585073515,2.06058939,86.37,86.321,13.4820171]
[1772585074912,10.421,86.361,86.321,13.4820171]
[1772585075411,10.421,86.361,86.26,28.51400057]
[1772585075412,2.06058939,86.4,86.352,10.422]
[1772585075612,2.06058939,86.42,86.361,8.2723571]
[1772585076116,2.06058939,86.42,86.363,8.27234023]
[1772585076623,206.099,86.454,86.32,20.851]
[1772585076624,2.06058939,86.43,86.371,8.27234023]
[1772585077016,185.28,86.454,86.371,8.27234023]
[1772585077217,10.412,86.429,86.381,8.40863119]
[1772585079120,2.06058939,86.42,86.366,8.38110186]
[1772585079421,2.06058939,86.41,86.366,8.38110186]
[1772585080319,10.415,86.407,86.366,8.38110186]
[1772585080818,10.414,86.416,86.367,10.42]
[1772585081022,10.414,86.416,86.368,8.37796955]
[1772585082421,10.414,86.416,86.37,8.37797891]
[1772585085321,5.51306405,86.43,86.37,8.37797891]
[1772585085722,10.415,86.405,86.37,8.37797891]
[1772585086123,5.51306405,86.43,86.37,8.37797891]
[1772585086718,5.51306405,86.43,86.34,5.51306405]
[1772585086719,10.414,86.413,86.372,8.3599203]
[1772585087620,5.51306405,86.45,86.376,8.3599203]
[1772585089030,10.415,86.409,86.376,8.3599203]
[1772585089234,5.51306405,86.43,86.376,8.3599203]
[1772585089433,5.51306405,86.43,86.341,8.36073581]
[1772585090330,10.416,86.402,86.357,8.36073414]
[1772585092442,10.416,86.396,86.357,8.36073414]
[1772585093445,10.415,86.403,86.357,8.36073414]
[1772585094444,10.416,86.397,86.359,8.34443694]
[1772585094848,5.51306405,86.43,86.328,8.33614638]
[1772585095447,10.418,86.385,86.344,8.33614638]
[1772585096244,5.51306405,86.41,86.344,8.33614638]
[1772585096844,10.418,86.384,86.344,8.33614638]
[1772585098249,10.419,86.377,86.344,8.33614638]
[1772585098649,5.51306405,86.41,86.344,8.33614638]
[1772585100349,20.826,86.427,86.344,8.33614638]
[1772585100350,5.51306405,86.42,86.344,8.33614638]
[1772585100545,2.05886479,86.4,86.344,8.33614638]
[1772585100748,2.05886479,86.4,86.284,28.51400057]
[1772585100749,2.05886479,86.42,86.361,8.30761673]
[1772585101747,10.5389297,86.455,86.37,2.05886479]
[1772585101953,2.05886479,86.44,86.391,8.30758852]